bitfinex/quotes_ETHUSD_20241212
["timestamp","ask_amount","ask_price","bid_price","bid_amount"]
[1734042636900,0.55,3867.8,3867.1,2.58591]
[1734042637652,0.55,3867.8,3867.0,0.68176929]
[1734042638004,0.55,3867.8,3866.7,0.8235]
[1734042638005,0.55,3867.8,3867.1,2.58588]
[1734042639171,0.55,3867.8,3866.7,0.8235]
[1734042639306,0.55,3867.8,3867.1,2.58586]
[1734042639510,0.55,3867.8,3866.9,3.0]
[1734042639744,0.55,3867.8,3867.3,2.58577]
[1734042640053,0.55,3867.8,3867.3,2.844347]
[1734042640234,0.55,3867.8,3867.4,2.58569]
[1734042640402,0.55,3867.8,3867.3,0.258577]
[1734042640602,0.55,3867.8,3866.7,0.8235]
[1734042640802,0.55,3867.8,3867.2,2.58583]
[1734042641003,0.55,3867.8,3867.3,3.0]
[1734042641657,0.55,3867.8,3867.2,2.58583]
[1734042641859,0.55,3867.8,3867.0,2.58598]
[1734042642065,0.55,3867.8,3867.1,2.58591]
[1734042642205,0.55,3867.8,3867.0,0.899561]
[1734042642405,0.55,3867.8,3867.2,2.58582]
[1734042643447,0.55,3867.8,3867.0,3.485471]
[1734042643601,0.55,3867.8,3867.2,2.58583]
[1734042644254,0.55,3867.8,3867.3,2.58577]
[1734042646546,0.55,3867.8,3867.2,0.3485391]
[1734042646907,0.55,3867.8,3867.2,2.9343591]
[1734042647532,0.55,3867.8,3867.3,2.58572]
[1734042648637,0.55,3867.8,3867.1,2.58591]
[1734042648835,0.55,3867.8,3866.7,3.95578456]
[1734042648836,1.70478377,3867.8,3866.8,2.58608]
[1734042649043,1.70478377,3867.8,3866.8,2.58605]
[1734042649238,1.70478377,3867.8,3866.9,2.58603]
[1734042649406,1.70478377,3867.8,3867.0,2.58595]
[1734042649603,0.55,3867.8,3867.2,2.58584]
[1734042650712,0.55,3867.8,3866.7,0.8235]
[1734042650914,0.55,3867.8,3867.3,2.58572]
[1734042652445,0.55,3867.8,3867.1,2.5859]
[1734042652663,0.55,3867.8,3867.2,2.58584]
[1734042653679,0.55,3867.8,3867.3,2.58578]
[1734042654083,0.55,3867.8,3867.0,3.0]
[1734042654285,0.55,3867.8,3867.2,2.58578]
[1734042654590,0.55,3867.8,3867.1,0.62401024]
[1734042654591,0.55,3867.8,3867.3,2.58577]
[1734042654758,0.0751,3867.9,3867.3,2.58577]
[1734042655452,0.0751,3867.9,3867.5,2.58564]
[1734042655658,0.55,3867.6,3866.8,0.65405244]
[1734042655853,0.55,3867.6,3866.4,0.13119909]
[1734042655854,0.0751,3867.5,3866.4,0.13119909]
[1734042656387,0.0751,3867.5,3866.9,2.58598]
[1734042657000,0.0751,3867.5,3866.8,2.5861]
[1734042657756,0.0751,3867.5,3866.6,2.58623]
[1734042657959,0.55,3867.4,3866.6,2.58623]
[1734042658171,0.0751,3867.3,3866.0,0.7665]
[1734042658406,0.55,3867.2,3866.0,0.7665]
[1734042658889,0.55,3867.2,3866.2,2.58646]
[1734042659395,0.55,3867.2,3866.0,0.7665]
[1734042659396,0.0751,3867.3,3866.6,2.58619]
[1734042659690,0.55,3867.2,3866.6,2.58619]
[1734042660596,0.55,3867.2,3866.0,3.7665]
[1734042660829,0.55,3867.0,3865.8,2.58676]
[1734042661127,0.55,3867.0,3866.3,2.58643]
[1734042661305,0.55,3867.0,3866.5,2.58628]
[1734042662627,0.55,3867.0,3866.3,2.58644]
[1734042664723,0.55,3867.0,3866.0,2.58665]
[1734042664926,0.55,3867.0,3866.5,2.58631]
[1734042665126,0.0751,3867.1,3866.1,3.92387089]
[1734042665314,0.0751,3867.1,3866.5,2.58629]
[1734042666312,0.55,3867.0,3866.5,2.58629]
[1734042666610,0.55,3867.0,3866.6,2.58624]
[1734042669840,0.55,3867.0,3866.2,1.06531888]
[1734042670045,0.55,3867.0,3866.4,2.58637]
[1734042671957,0.55,3867.0,3866.3,0.91737681]
[1734042672348,0.55,3867.0,3866.5,2.5863]
[1734042672860,0.55,3867.0,3866.2,1.06531888]
[1734042673064,0.55,3867.0,3866.2,2.30557682]
[1734042673394,0.55,3866.8,3866.0,2.58659]
[1734042673680,0.55,3866.4,3865.7,1.06531888]
[1734042673988,0.6251,3866.1,3865.3,3.65241888]
[1734042674207,0.55,3866.0,3865.4,1.24052494]
[1734042674337,0.55,3866.0,3865.2,1.06531888]
[1734042674648,0.55,3866.0,3865.2,3.0440377]
[1734042674967,0.55,3866.0,3865.3,1.24060132]
[1734042675173,0.55,3866.0,3865.4,1.24060132]
[1734042675340,0.0751,3865.9,3865.2,1.06531888]
[1734042675546,0.55,3865.8,3865.2,1.24018919]
[1734042675859,0.55,3865.8,3864.5,3.22773613]
[1734042675860,0.55,3865.6,3864.6,1.06531888]
[1734042676172,0.55,3865.6,3864.7,0.51519129]
[1734042676934,0.55,3865.6,3865.0,2.5873]
[1734042677342,0.55,3865.6,3864.9,2.58737]
[1734042677543,0.5,3865.6,3865.0,2.58726]
[1734042677743,0.5,3865.6,3865.0,2.58728]
[1734042678093,0.5,3865.6,3864.7,3.10266129]
[1734042678242,0.5,3865.6,3864.8,1.70831557]
[1734042678438,0.5,3865.6,3864.8,0.46963121]
[1734042678639,0.5,3865.6,3864.7,0.51519129]
[1734042678838,0.5,3865.6,3864.9,2.58736]
[1734042679057,0.5,3865.6,3865.1,2.58723]
[1734042679263,0.5,3865.6,3865.0,2.5873]
[1734042679873,0.5,3865.6,3864.8,2.58739]
[1734042680173,0.5,3865.6,3864.7,0.51519129]
[1734042680497,0.5,3865.6,3864.9,2.58734]
[1734042680797,0.5,3865.6,3864.7,0.51519129]
[1734042681069,0.5,3865.6,3864.7,3.10270129]
[1734042681278,0.5,3865.6,3864.8,2.58744]
[1734042681970,0.5,3865.6,3864.7,0.51519129]
[1734042682177,0.5,3865.6,3864.7,3.0]
[1734042682674,0.5,3865.6,3864.4,0.8055]
[1734042682922,0.55,3865.4,3864.4,3.0]
[1734042683184,0.55,3865.2,3864.1,0.7658]
[1734042683775,0.55,3865.0,3863.8,2.71563061]
[1734042683937,3.74193377,3865.3,3863.8,2.71563061]
[1734042683938,0.55,3864.8,3863.9,0.75467495]
[1734042684135,0.55,3864.8,3864.2,2.58783]
[1734042684870,0.55,3864.8,3863.9,0.75467495]
[1734042685075,0.55,3864.6,3863.4,2.58839]
[1734042685247,0.55,3864.6,3863.3,2.99350265]
[1734042685248,0.55,3864.6,3863.6,2.58821]
[1734042685449,0.55,3864.6,3863.7,3.0]
[1734042686041,0.55,3864.4,3863.0,1.19739225]
[1734042686277,0.6251,3864.0,3862.9,2.58871]
[1734042686572,0.55,3863.8,3862.9,2.58871]
[1734042686789,0.55,3863.8,3862.5,1.15478377]
[1734042686945,0.55,3863.8,3863.6,2.58823]
[1734042688381,0.55,3863.8,3863.7,3.0]
[1734042690285,0.55,3863.8,3863.7,2.58819]
[1734042690438,0.55,3863.8,3863.7,6.405847]
[1734042691669,0.0751,3865.2,3863.9,2.58805]
[1734042691865,0.0751,3865.2,3864.0,3.0]
[1734042692117,0.0751,3865.2,3865.0,2.58731]
[1734042692565,2.71329863,3866.7,3864.5,3.34654]
[1734042692566,0.0751,3865.5,3864.5,0.7589]
[1734042692768,0.0751,3865.5,3865.4,2.58705]
[1734042693398,0.0751,3866.0,3864.8,3.0]
[1734042693605,0.0751,3866.0,3865.7,2.58685]
[1734042693804,0.0751,3866.0,3865.0,3.0]
[1734042693972,0.0751,3866.8,3865.2,0.813]
[1734042694168,0.0751,3866.8,3866.0,2.58659]
[1734042694368,0.0751,3866.8,3866.1,2.58657]
[1734042694601,0.0751,3866.8,3866.3,2.58644]
[1734042694807,0.0751,3866.8,3865.1,0.558738]
[1734042694808,0.0751,3866.8,3865.7,0.7622]
[1734042695008,0.0751,3866.8,3866.3,2.58642]
[1734042695317,0.0751,3866.8,3866.1,3.0]
[1734042695510,0.0751,3866.8,3866.4,2.58631]
[1734042695809,0.0751,3866.8,3866.7,2.58618]
[1734042696117,0.0751,3867.5,3866.2,0.7622]
[1734042696298,0.0751,3867.5,3867.0,2.58592]
[1734042697195,0.0751,3867.5,3867.1,2.5859]
[1734042698668,0.0751,3868.0,3867.0,0.7622]
[1734042698907,0.0751,3868.0,3867.1,2.5859]
[1734042699580,0.0751,3868.0,3866.8,2.58606]
[1734042699783,0.0751,3868.0,3866.6,0.7622]
[1734042700018,0.55,3867.9,3866.6,3.7622]
[1734042700173,0.55,3867.9,3866.6,0.7622]
[1734042700538,0.55,3867.9,3867.0,2.58591]
[1734042700875,0.55,3867.9,3867.0,0.258591]
[1734042701442,0.55,3867.9,3867.0,3.0]
[1734042701575,0.55,3867.4,3866.2,2.58651]
[1734042701944,0.55,3867.2,3866.2,2.58651]
[1734042702926,0.55,3867.2,3866.5,2.58631]
[1734042703371,0.55,3867.2,3866.3,2.58641]
[1734042704507,0.55,3867.2,3866.1,2.58657]
[1734042705023,0.0751,3867.1,3865.5,3.8243]
[1734042705172,0.55,3867.0,3866.0,3.0]
[1734042705691,0.55,3867.0,3865.5,0.8243]
[1734042705692,0.55,3866.8,3865.9,3.0]
[1734042705895,0.55,3866.6,3865.5,0.8243]
[1734042706093,0.55,3866.6,3864.9,0.8243]
[1734042706299,0.55,3866.6,3865.6,3.0]
[1734042706495,0.55,3866.6,3865.8,2.58678]
[1734042706693,0.55,3866.6,3865.7,3.0]
[1734042706893,0.55,3866.6,3865.2,2.71855272]
[1734042706894,0.55,3866.4,3865.2,0.13143272]
[1734042707185,0.55,3866.4,3865.3,3.0]
[1734042707413,0.55,3866.4,3865.0,0.13180743]
[1734042708282,0.55,3866.4,3865.5,3.0]
[1734042708485,0.55,3866.2,3865.3,3.0]
[1734042708679,0.55,3866.2,3865.5,3.0]
[1734042709925,0.55,3866.2,3865.0,0.13180743]
[1734042710121,0.55,3866.2,3865.6,2.58688]
[1734042710843,0.55,3866.2,3865.1,2.58725]
[1734042711140,0.55,3866.2,3865.4,2.58704]
[1734042711444,0.55,3866.2,3865.5,2.58698]
[1734042712238,0.55,3866.2,3865.2,3.0]
[1734042712239,0.55,3866.2,3865.7,2.58684]
[1734042712404,0.55,3866.2,3865.4,2.58699]
[1734042712587,0.55,3866.2,3865.5,2.58697]
[1734042712787,0.55,3866.2,3865.4,0.817424]
[1734042713012,0.55,3866.0,3865.1,2.58724]
[1734042713216,0.55,3866.0,3865.2,3.0]
[1734042713747,0.55,3866.0,3865.0,3.0]
[1734042714033,0.55,3866.0,3865.3,2.58711]
[1734042714888,0.55,3866.0,3864.9,2.58737]
[1734042714889,0.55,3866.0,3864.9,2.58738]
[1734042715087,0.55,3866.0,3865.2,3.0]
[1734042715288,0.55,3866.0,3865.0,3.30974031]
[1734042715944,0.0751,3867.2,3866.2,2.58651]
[1734042716081,0.0751,3867.2,3865.4,2.58705]
[1734042716288,0.0751,3867.2,3866.0,0.7932]
[1734042716503,0.0751,3867.2,3866.5,2.58631]
[1734042716787,0.0751,3867.2,3866.6,0.258631]
[1734042718312,0.55,3867.1,3866.6,2.844871]
[1734042719333,0.55,3867.1,3866.7,2.58617]
[1734042720700,0.55,3867.1,3866.6,0.258631]
[1734042721631,0.55,3867.1,3866.7,2.58618]
[1734042721935,0.55,3867.1,3866.8,0.2844811]
[1734042724289,0.0751,3867.6,3866.8,3.02586081]
[1734042724488,0.0751,3867.6,3867.1,2.58591]
[1734042725840,0.55,3867.5,3867.2,2.58584]
[1734042726135,0.55,3867.5,3866.8,3.0]
[1734042726361,0.55,3867.5,3867.0,2.58598]
[1734042726500,0.55,3867.5,3867.3,2.58577]
[1734042726703,0.55,3867.5,3867.0,2.58598]
[1734042726950,0.55,3867.5,3867.3,2.58578]
[1734042727154,0.55,3867.5,3867.4,2.58571]
[1734042727477,0.55,3867.8,3867.4,2.844281]
[1734042729319,0.55,3867.8,3867.4,2.58571]
[1734042734750,0.55,3867.8,3867.5,2.58562]
[1734042738159,2.34950027,3868.1,3867.0,5.58598]
[1734042738160,0.55,3868.0,3867.6,2.58556]
[1734042738362,0.55,3868.1,3867.6,2.58556]
[1734042738506,0.55,3868.1,3867.4,0.7652]
[1734042738710,0.55,3868.1,3867.8,2.58538]
[1734042739326,0.55,3868.1,3867.5,2.9621]
[1734042739657,0.55,3868.1,3867.7,2.5855]
[1734042742535,0.55,3868.1,3867.2,3.0]
[1734042742725,0.0751,3868.0,3867.1,3.0]
[1734042743067,0.55,3867.9,3867.1,3.0]
[1734042743238,0.55,3867.9,3867.1,5.5859]
[1734042744441,0.55,3867.9,3867.1,2.5859]
[1734042747366,0.55,3867.9,3866.9,2.58603]
[1734042747580,0.55,3867.9,3867.0,3.0]
[1734042748573,0.55,3867.7,3866.8,3.0]
[1734042750730,0.55,3867.7,3866.6,3.0]
[1734042751085,0.55,3867.7,3866.6,5.58618]
[1734042751575,0.55,3867.7,3866.8,3.0]
[1734042751783,0.0751,3867.8,3867.7,2.58551]
[1734042752076,0.0751,3868.1,3867.3,2.58578]
[1734042752269,0.0751,3868.1,3867.3,3.0]
[1734042752483,0.0751,3868.1,3867.4,0.639194]
[1734042753062,0.0751,3868.1,3867.6,2.58557]
[1734042753383,0.55,3868.0,3867.6,2.58557]
[1734042755205,0.55,3868.0,3867.6,2.58554]
[1734042755346,0.55,3868.0,3867.4,0.639194]
[1734042755550,0.55,3868.0,3867.5,0.7031094]
[1734042755772,0.55,3868.0,3867.5,3.7031094]
[1734042755964,0.55,3868.0,3867.5,0.7031094]
[1734042756255,0.55,3868.0,3867.5,3.2887094]
[1734042757297,1.15495271,3868.3,3867.5,3.2887094]
[1734042757298,0.55,3868.3,3867.8,2.58541]
[1734042757603,0.55,3868.3,3867.9,0.258541]
[1734042762350,1.70495271,3868.3,3867.9,0.258541]
[1734042762551,0.55,3868.3,3867.9,0.258541]
[1734042762750,0.55,3868.3,3867.6,1.07725119]
[1734042762972,0.55,3868.3,3867.6,3.82491717]
[1734042763287,0.55,3868.3,3867.6,2.58553]
[1734042764606,1.15495271,3868.2,3867.5,1.07725119]
[1734042764813,0.55,3868.1,3867.5,1.23975668]
[1734042765008,0.55,3868.1,3867.5,0.77389847]
[1734042765223,0.55,3868.1,3867.6,1.23977971]
[1734042765424,0.55,3868.1,3867.5,3.35952847]
[1734042765718,0.55,3868.1,3867.6,1.23995272]
[1734042766020,0.55,3868.1,3867.5,3.35952847]
[1734042766367,0.55,3868.1,3867.6,1.23993485]
[1734042766534,0.55,3868.1,3867.5,3.35952847]
[1734042766728,0.55,3868.1,3867.6,1.23993017]
[1734042766933,0.55,3868.1,3867.5,4.43677966]
[1734042767092,0.55,3868.1,3867.6,1.23994402]
[1734042767282,0.55,3868.1,3867.5,3.35952847]
[1734042767483,0.55,3868.1,3867.6,1.23994563]
[1734042767710,0.55,3868.1,3867.5,4.43677966]
[1734042767921,0.55,3868.3,3867.8,2.58539]
[1734042768088,0.55,3868.3,3867.6,2.14540719]
[1734042768089,0.55,3868.3,3867.7,1.07725119]
[1734042768284,0.55,3868.3,3867.6,0.90526565]
[1734042768285,0.55,3868.3,3867.6,1.98251684]
[1734042768590,0.55,3868.3,3867.7,4.90276969]
[1734042768788,0.55,3868.3,3867.8,1.2400685]
[1734042769119,0.55,3868.3,3867.6,0.90526565]
[1734042769475,0.55,3868.3,3867.6,3.66281119]
[1734042769678,0.55,3868.3,3867.7,1.24038846]
[1734042770119,0.55,3868.3,3867.7,2.31763965]
[1734042770324,0.55,3868.3,3867.8,1.24038846]
[1734042770483,0.55,3868.3,3867.7,1.07725119]
[1734042770686,0.55,3868.3,3867.8,0.5278688]
[1734042775390,0.55,3868.3,3867.6,1.07725119]
[1734042775607,0.55,3868.3,3867.6,1.24064319]
[1734042775808,0.55,3868.3,3867.7,1.24064319]
[1734042776007,0.55,3868.3,3867.6,1.07725119]
[1734042776207,0.55,3868.3,3867.6,2.31790649]
[1734042776696,0.55,3868.3,3867.7,1.2406553]
[1734042776923,0.55,3868.3,3867.7,0.95193833]
[1734042778393,0.55,3868.3,3867.5,5.5856]
[1734042778394,0.55,3868.3,3867.5,1.07725119]
[1734042778676,0.55,3868.3,3867.5,2.31790135]
[1734042779927,0.55,3868.3,3867.6,1.24065199]
[1734042780164,0.55,3868.3,3867.7,1.24065199]
[1734042780378,0.55,3868.3,3867.5,1.07725119]
[1734042780538,0.55,3868.3,3867.6,3.0]
[1734042780747,0.55,3868.3,3867.7,1.24064723]
[1734042780932,0.55,3868.3,3867.5,4.96233682]
[1734042781131,0.55,3868.3,3867.6,1.24062171]
[1734042781458,0.55,3868.3,3867.7,1.24062171]
[1734042781660,0.55,3868.3,3867.6,3.0]
[1734042781843,0.55,3868.3,3867.7,1.24061968]
[1734042782047,0.55,3868.3,3867.6,3.0]
[1734042782241,0.55,3868.3,3867.7,1.24061648]
[1734042782542,0.55,3868.3,3867.5,1.96233682]
[1734042782760,0.55,3868.3,3867.6,4.24061118]
[1734042782926,0.55,3868.3,3867.7,1.24061118]
[1734042783126,0.55,3868.3,3867.6,3.0]
[1734042783331,0.55,3868.3,3867.7,1.2406183]
[1734042783645,0.55,3868.3,3867.8,1.24056507]
[1734042783844,0.55,3868.3,3867.7,0.7559]
[1734042784069,0.55,3868.3,3867.8,1.24054376]
[1734042784269,0.55,3868.3,3867.7,3.7559]
[1734042784440,0.55,3868.3,3867.7,1.0577495]
[1734042786432,0.55,3868.3,3867.6,0.65782136]
[1734042787035,0.55,3868.3,3867.7,2.58548]
[1734042787234,0.55,3868.3,3867.8,1.24046836]
[1734042787488,0.55,3868.3,3867.9,1.24046836]
[1734042787659,0.55,3868.3,3867.7,3.66836619]
[1734042787860,0.55,3868.3,3867.8,1.83548007]
[1734042788074,0.55,3868.3,3867.9,1.24042839]
[1734042791647,0.55,3868.3,3867.9,3.82578839]
[1734042791867,0.55,3868.3,3867.8,1.67793787]
[1734042792146,0.55,3868.3,3867.9,1.24047716]
[1734042792348,0.55,3868.3,3868.0,1.24046657]
[1734042792546,0.55,3868.3,3867.8,1.67793787]
[1734042792762,0.55,3868.3,3867.9,1.85609953]
[1734042793067,0.55,3868.3,3867.9,0.61558841]
[1734042794088,0.55,3868.3,3867.9,1.6984746]
[1734042794301,0.55,3868.3,3868.0,2.32348636]
[1734042794454,0.55,3868.3,3868.1,1.24060017]
[1734042794653,0.55,3868.3,3867.9,4.2838446]
[1734042794959,0.55,3868.3,3868.0,3.27386977]
[1734042795160,0.55,3868.3,3868.1,1.24066102]
[1734042795363,0.55,3868.3,3868.0,0.95032256]
[1734042795570,0.55,3868.6,3868.2,2.58518]
[1734042795906,0.55,3868.6,3868.3,2.3237388]
[1734042796120,0.55,3868.6,3868.4,1.24062565]
[1734042796275,0.55,3868.6,3868.2,1.08311315]
[1734042796475,0.55,3868.6,3868.3,2.32370582]
[1734042796667,0.55,3868.6,3868.3,1.24059267]
[1734042796882,0.55,3868.6,3868.4,1.24059267]
[1734042797080,0.55,3868.6,3868.2,5.067663]
[1734042797305,0.55,3868.6,3868.3,1.24093011]
[1734042797519,0.55,3868.6,3868.4,1.24093011]
[1734042797672,0.55,3868.6,3868.1,4.62432928]
[1734042797673,0.55,3868.6,3868.1,4.08311315]
[1734042797858,0.55,3868.6,3868.2,2.32436879]
[1734042798060,0.55,3868.6,3868.3,1.24125564]
[1734042798316,0.55,3868.6,3868.1,1.08311315]
[1734042798462,0.55,3868.6,3868.1,2.32432171]
[1734042798862,0.55,3868.6,3868.2,2.32432171]
[1734042799161,0.55,3868.6,3868.3,1.24120856]
[1734042799359,0.55,3868.6,3868.1,1.08311315]
[1734042799560,0.55,3868.6,3868.1,2.32427488]
[1734042799790,0.55,3868.6,3868.2,2.32427488]
[1734042799996,0.55,3868.6,3868.3,1.24116173]
[1734042800188,0.55,3868.6,3868.1,1.08311315]
[1734042800392,0.55,3868.6,3868.1,2.32428702]
[1734042804845,0.55,3868.6,3868.2,1.24098246]
[1734042805163,0.55,3868.6,3868.3,1.24098246]
[1734042805452,0.55,3868.6,3868.1,1.08311315]
[1734042805619,0.55,3868.6,3868.1,2.32405918]
[1734042806649,0.55,3868.6,3868.0,1.08311315]
[1734042806805,0.55,3868.6,3868.1,1.2409762]
[1734042807007,0.55,3868.4,3867.9,1.08311315]
[1734042807236,0.55,3868.4,3867.9,2.32409909]
[1734042807937,0.55,3868.4,3868.0,1.24098594]
[1734042808105,0.55,3868.4,3868.1,1.24098594]
[1734042808306,0.55,3868.4,3868.0,1.08311315]
[1734042808550,0.55,3868.4,3868.1,1.24098836]
[1734042808706,0.55,3868.4,3867.9,1.08311315]
[1734042808903,0.55,3868.4,3868.0,1.08311315]
[1734042809108,0.55,3868.2,3867.7,1.08311315]
[1734042809360,0.55,3868.0,3867.8,1.24111308]
[1734042809508,0.55,3868.0,3867.5,1.08311315]
[1734042809857,0.55,3868.0,3867.5,2.32426655]
[1734042810154,0.55,3868.0,3867.6,2.32426655]
[1734042810365,0.55,3868.0,3867.5,1.08311315]
[1734042810651,0.55,3868.0,3867.5,2.32426684]
[1734042811005,0.55,3868.0,3867.6,1.2411356]
[1734042811209,0.55,3867.8,3867.3,1.08311315]
[1734042811406,0.55,3867.8,3867.3,2.32420176]
[1734042811626,0.55,3867.8,3867.4,1.24108861]
[1734042812058,0.55,3867.8,3867.2,1.08311315]
[1734042812460,1.15495271,3868.0,3866.9,1.08311315]
[1734042812461,0.0751,3867.5,3866.9,1.08311315]
[1734042812775,0.55,3867.4,3866.9,2.32429858]
[1734042812941,0.55,3867.4,3866.8,1.08311315]
[1734042813684,0.55,3867.4,3866.9,1.24086779]
[1734042813981,0.55,3867.4,3866.7,1.08311315]
[1734042814288,0.55,3867.4,3866.4,1.08311315]
[1734042814289,0.55,3867.0,3866.4,1.08311315]
[1734042814568,0.55,3867.0,3866.2,1.08311315]
[1734042814768,0.55,3867.0,3866.3,1.2403961]
[1734042814978,0.55,3866.8,3866.1,1.08311315]
[1734042815271,0.55,3866.8,3865.8,1.08311315]
[1734042815434,0.55,3866.8,3865.9,1.23971637]
[1734042815637,0.55,3866.9,3865.8,1.08311315]
[1734042815855,0.55,3866.7,3865.9,1.23969033]
[1734042816036,0.55,3866.7,3865.8,1.08311315]
[1734042816366,0.55,3866.7,3865.9,3.0]
[1734042819103,0.55,3866.7,3865.9,2.58671]
[1734042822133,0.55,3866.7,3865.6,3.7684]
[1734042822134,0.55,3866.7,3865.7,2.58684]
[1734042822334,0.55,3866.7,3865.8,3.0]
[1734042822536,0.55,3866.7,3865.8,2.58677]
[1734042822749,0.55,3866.7,3865.9,3.0]
[1734042824593,3.13619,3866.7,3865.6,0.7684]
[1734042824800,0.55,3866.5,3865.6,3.0]
[1734042825093,3.74114271,3866.7,3865.6,3.0]
[1734042825094,0.55,3866.3,3865.6,3.0]
[1734042827587,0.55,3866.3,3865.3,3.34622]
[1734042827787,0.55,3866.3,3865.4,3.0]
[1734042829630,0.0751,3866.0,3865.0,3.38517]
[1734042829832,0.55,3865.9,3865.0,3.38517]
[1734042830243,0.55,3865.9,3864.6,1.15495271]
[1734042830424,0.55,3865.9,3864.8,2.58743]
[1734042830752,0.55,3865.9,3864.9,3.0]
[1734042830890,0.55,3865.9,3864.9,2.58736]
[1734042831087,0.55,3865.7,3865.0,3.0]
[1734042833294,0.55,3865.7,3865.0,5.5873]
[1734042836056,0.55,3865.7,3865.1,2.58719]
[1734042842651,0.0751,3867.2,3865.3,0.804]
[1734042842854,0.0751,3866.8,3865.9,0.804]
[1734042843354,0.0751,3866.8,3865.9,3.39071]
[1734042844093,0.0751,3866.8,3865.9,2.58671]
[1734042844377,0.55,3866.7,3865.9,2.58671]
[1734042844587,0.55,3866.7,3865.9,2.845381]
[1734042846168,0.0751,3866.8,3866.1,2.58658]
[1734042846347,0.0751,3866.8,3866.3,2.58643]
[1734042846709,0.0751,3866.8,3866.0,0.8093]
[1734042846880,0.0751,3866.8,3866.4,2.58636]
[1734042847779,0.55,3866.7,3866.4,2.58636]
[1734042847939,0.55,3866.7,3866.2,0.02586174]
[1734042848141,0.55,3867.0,3866.5,2.58631]
[1734042849444,2.721,3868.8,3866.1,0.4067971]
[1734042849445,0.0751,3868.1,3866.6,4.49534271]
[1734042849646,0.0751,3868.1,3867.2,2.58581]
[1734042849881,0.0751,3868.1,3866.7,0.44953427]
[1734042850081,0.0751,3868.1,3866.9,3.0]
[1734042850266,0.0751,3868.1,3867.2,2.58579]
[1734042850971,0.0751,3868.1,3866.8,5.58611]
[1734042850972,0.0751,3868.1,3867.0,2.58598]
[1734042851153,0.0751,3868.1,3866.9,3.0]
[1734042851353,0.55,3868.0,3866.9,3.7944797]
[1734042852482,0.0751,3868.1,3867.6,2.58558]
[1734042852845,0.0751,3868.1,3867.7,2.5855]
[1734042853306,0.0751,3868.5,3867.8,2.58543]
[1734042854021,0.0751,3868.5,3867.9,2.58537]
[1734042854491,0.55,3868.4,3867.9,2.58537]
[1734042858017,0.55,3868.4,3867.6,0.8116]
[1734042858217,0.55,3868.4,3867.6,1.451331]
[1734042858796,0.55,3868.4,3867.6,4.036901]
[1734042859202,0.55,3868.6,3867.8,3.0]
[1734042859391,0.1622145,3868.7,3867.8,3.0]
[1734042859392,0.1622145,3868.7,3868.3,2.58511]
[1734042859802,0.1622145,3868.7,3868.3,3.41171]
[1734042860018,0.1622145,3868.7,3868.3,3.752881]
[1734042860884,0.55,3868.6,3868.3,3.752881]
[1734042861623,0.55,3868.6,3868.3,1.167771]
[1734042861838,0.55,3868.6,3868.3,0.8266]
[1734042862342,0.1622145,3868.7,3868.3,0.8266]
[1734042862502,0.55,3868.6,3868.2,2.58515]
[1734042864386,0.55,3868.6,3868.1,3.0]
[1734042864785,0.55,3868.6,3867.8,1.15495271]
[1734042864786,0.55,3868.4,3867.8,3.0]
[1734042864988,0.55,3868.4,3867.8,0.56229837]
[1734042865241,0.55,3868.6,3868.0,3.0]
[1734042866702,0.1622145,3868.7,3868.4,2.58503]
[1734042866906,0.1622145,3868.7,3868.5,2.58497]
[1734042868728,0.1622145,3868.7,3868.3,2.5851]
[1734042869428,0.1622145,3868.7,3868.3,3.33628527]
[1734042871120,0.1622145,3868.7,3868.4,2.58502]
[1734042872329,0.55,3868.6,3868.2,3.7718]
[1734042872530,0.55,3868.6,3868.2,3.0]
[1734042877897,0.55,3868.6,3867.9,3.8155]
[1734042878152,0.55,3868.6,3867.8,0.56229837]
[1734042878339,0.55,3868.6,3867.7,3.0]
[1734042879469,0.55,3868.6,3867.6,1.98585271]
[1734042879658,0.55,3868.6,3867.6,4.98585271]
[1734042880175,0.55,3868.6,3867.7,3.0]
[1734042880544,0.55,3868.6,3867.7,2.5855]
[1734042880745,0.55,3868.6,3867.8,3.45713527]
[1734042882062,0.55,3868.6,3868.0,1.15495271]
[1734042882244,0.55,3868.6,3868.2,2.58511]
[1734042885176,0.55,3868.6,3868.3,2.58509]
[1734042885740,0.55,3868.6,3868.1,0.7903]
[1734042885940,0.55,3868.6,3868.3,2.58508]
[1734042888259,0.55,3868.6,3868.2,0.54739428]
[1734042888439,0.55,3868.6,3868.4,2.58502]
[1734042889841,0.55,3868.6,3868.2,1.33769428]
[1734042889842,0.1622145,3868.7,3868.6,2.58491]
[1734042890870,0.1622145,3868.7,3868.6,7.49306271]
[1734042891183,0.1622145,3868.7,3868.6,10.92940701]
[1734042891387,2.5e-06,3868.9,3868.8,6.33798]
[1734042891585,2.5e-06,3868.9,3868.8,8.49709157]
[1734042891740,2.5e-06,3868.9,3868.8,9.22806707]